bitfinex-derivatives/quotes_BTCF0:USTF0_20260113
["timestamp","ask_amount","ask_price","bid_price","bid_amount"]
[1768346203556,0.17420715,95727.0,95702.0,0.09121763]
[1768346203557,0.17440864,95727.0,95702.0,0.09121763]
[1768346203752,0.17440864,95727.0,95703.0,0.09121763]
[1768346204138,0.01045,95724.0,95703.0,0.09121763]
[1768346204651,0.010451,95722.0,95703.0,0.09121763]
[1768346205141,0.01045,95725.0,95703.0,0.09121763]
[1768346206049,0.08125253,95725.0,95703.0,0.09121763]
[1768346206345,0.010451,95723.0,95703.0,0.09121763]
[1768346206546,0.01045,95724.0,95703.0,0.09121763]
[1768346208649,0.07080253,95725.0,95703.0,0.09121763]
[1768346208851,0.08125253,95725.0,95703.0,0.09121763]
[1768346209143,0.07080253,95725.0,95703.0,0.09121763]
[1768346209647,0.010451,95723.0,95703.0,0.09121763]
[1768346209847,0.07080253,95725.0,95703.0,0.09121763]
[1768346210542,0.010451,95722.0,95703.0,0.09121763]
[1768346211253,0.08125253,95725.0,95703.0,0.09121763]
[1768346211440,0.07080253,95725.0,95703.0,0.09121763]
[1768346211641,0.01045,95724.0,95703.0,0.09121763]
[1768346212246,0.010451,95721.0,95703.0,0.09121763]
[1768346213251,0.00522395,95713.0,95703.0,0.09121763]
[1768346213850,0.00522395,95713.0,95696.0,0.09121763]
[1768346214155,0.00522395,95713.0,95697.0,0.09412]
[1768346214453,0.00522395,95713.0,95698.0,0.09121763]
[1768346214951,0.00522395,95713.0,95700.0,0.09121763]
[1768346215541,0.00522395,95713.0,95700.0,0.18533763]
[1768346215743,0.00522395,95713.0,95701.0,0.09121763]
[1768346216451,0.07030486,95706.0,95682.0,0.09121763]
[1768346216940,0.07030486,95706.0,95683.0,0.09121763]
[1768346217550,0.06788305,95711.0,95685.0,0.09121763]
[1768346219654,0.06751671,95709.0,95685.0,0.09121763]
[1768346219850,0.06751671,95708.0,95685.0,0.09121763]
[1768346220355,0.09412,95712.0,95687.0,0.09272664]
[1768346220550,0.09412,95712.0,95681.0,0.09412]
[1768346220551,0.00522395,95713.0,95689.0,0.09272664]
[1768346220758,0.09934395,95713.0,95692.0,0.09121763]
[1768346221055,0.09934395,95713.0,95694.0,0.09121763]
[1768346222159,0.16694122,95713.0,95694.0,0.09121763]
[1768346222857,0.16194781,95712.0,95693.0,0.00522504]
[1768346223057,0.16194781,95711.0,95693.0,0.00522504]
[1768346223259,0.16194781,95710.0,95693.0,0.00522504]
[1768346223447,0.06846108,95709.0,95693.0,0.00522504]
[1768346225751,0.00015674,95711.0,95674.0,0.09009133]
[1768346225752,0.09230161,95704.0,95674.0,0.09009133]
[1768346225950,0.07236142,95702.0,95674.0,0.09009133]
[1768346226147,0.07236142,95700.0,95674.0,0.09009133]
[1768346226451,0.07236142,95700.0,95675.0,0.09009133]
[1768346228349,0.07216941,95689.0,95669.0,0.09412]
[1768346228555,0.07216941,95695.0,95673.0,0.09009133]
[1768346229461,1.59412,95701.0,95674.0,0.09009133]
[1768346229661,0.19387093,95700.0,95676.0,0.09009133]
[1768346229854,1.59412,95701.0,95677.0,0.09009133]
[1768346230052,1.59412,95701.0,95678.0,0.09009133]
[1768346230262,1.59412,95701.0,95680.0,0.09009133]
[1768346230455,1.59412,95701.0,95682.0,0.09009133]
[1768346230762,1.59412,95701.0,95684.0,0.09009133]
[1768346230959,1.59412,95701.0,95685.0,0.09009133]
[1768346232064,1.66026306,95701.0,95679.0,0.09009133]
[1768346232457,1.59412,95701.0,95680.0,0.09009133]
[1768346232760,1.59412,95701.0,95681.0,0.09009133]
[1768346233464,1.59412,95701.0,95682.0,0.09009133]
[1768346233658,1.59412,95701.0,95683.0,0.09014165]
[1768346233857,1.59412,95701.0,95684.0,0.09009133]
[1768346234157,1.59412,95701.0,95686.0,0.09009133]
[1768346234364,1.59412,95701.0,95687.0,0.09009133]
[1768346235766,1.4,95701.0,95689.0,0.09014165]
[1768346235967,1.2,95701.0,95690.0,0.09009133]
[1768346238858,1.2,95701.0,95691.0,0.09412]
[1768346240369,0.00522395,95713.0,95694.0,0.09628394]
[1768346241266,1.5,95712.0,95694.0,0.09628394]
[1768346242372,1.5,95712.0,95691.0,0.09412]
[1768346243274,1.5,95712.0,95692.0,0.00501004]
[1768346244178,0.09501011,95711.0,95691.0,0.09412]
[1768346246671,0.00522395,95713.0,95691.0,0.09412]
[1768346246672,0.00522395,95713.0,95691.0,0.0974089]
[1768346246872,1.5,95712.0,95692.0,0.0032889]
[1768346248581,0.09501011,95711.0,95689.0,0.8138]
[1768346248874,0.09501011,95711.0,95693.0,0.09412]
[1768346249074,1.5,95712.0,95693.0,0.09687349]
[1768346249282,0.00522395,95713.0,95694.0,0.00275349]
[1768346250279,1.5,95712.0,95694.0,0.00275349]
[1768346251070,0.00522395,95713.0,95700.0,0.19373905]
[1768346251273,0.04935669,95730.0,95700.0,0.19373905]
[1768346251470,0.04935669,95730.0,95701.0,0.1203]
[1768346251884,0.01214092,95744.0,95722.0,4e-05]
[1768346252078,0.09501011,95739.0,95723.0,0.09412]
[1768346252381,0.18523301,95734.0,95724.0,0.09412]
[1768346252584,0.09501011,95733.0,95708.0,0.08205203]
[1768346252782,0.09501011,95733.0,95709.0,0.17617203]
[1768346253084,0.09501011,95732.0,95709.0,0.17617203]
[1768346253281,0.09516685,95730.0,95710.0,0.08205203]
[1768346253583,0.09501011,95750.0,95734.0,0.08045453]
[1768346253774,0.09501011,95750.0,95735.0,0.09412]
[1768346254571,1.5,95749.0,95735.0,0.17457453]
[1768346254779,1.41954547,95749.0,95735.0,0.09412]
[1768346254977,0.09053354,95756.0,95735.0,0.09412]
[1768346255182,0.09053354,95754.0,95735.0,0.09412]
[1768346255674,1.59053354,95753.0,95735.0,0.09412]
[1768346255874,0.09053354,95752.0,95735.0,0.09412]
[1768346257183,1.5,95753.0,95735.0,0.09412]
[1768346257386,2.02236,95753.0,95735.0,0.09412]
[1768346257679,0.09053354,95752.0,95735.0,0.09412]
[1768346258382,0.09053354,95752.0,95733.0,0.00015665]
[1768346258589,0.09053354,95747.0,95734.0,0.09408]
[1768346259088,0.09053354,95747.0,95735.0,0.09408]
[1768346259286,0.18852533,95747.0,95733.0,0.00015665]
[1768346259488,0.09053354,95745.0,95734.0,0.09408]
[1768346261570,0.52236,95744.0,95734.0,0.09408]
[1768346261786,0.09053354,95743.0,95711.0,0.1203]
[1768346261990,0.09053354,95743.0,95712.0,0.97792]
[1768346262183,0.09053354,95742.0,95711.0,0.17778189]
[1768346262385,0.09053354,95731.0,95712.0,0.09408]
[1768346263686,0.09053354,95731.0,95711.0,0.1203]
[1768346264289,0.09053354,95730.0,95712.0,0.1203]
[1768346264480,0.09053354,95728.0,95713.0,0.09408]
[1768346264682,0.09053354,95726.0,95713.0,0.09408]
[1768346267186,0.52236,95727.0,95713.0,0.09408]
[1768346271289,0.09053354,95726.0,95713.0,0.09408]
[1768346271682,0.09053354,95724.0,95714.0,0.0939934]
[1768346271888,0.09053354,95721.0,95715.0,0.09408]
[1768346274001,0.52236,95717.0,95715.0,0.09408]
[1768346275892,0.61289354,95717.0,95709.0,0.884]
[1768346276090,0.09053354,95716.0,95703.0,0.884]
[1768346276389,0.09053354,95716.0,95704.0,0.09408]
[1768346279998,0.52236,95717.0,95704.0,0.09408]
[1768346280187,0.09053354,95715.0,95704.0,0.09408]
[1768346280996,0.18852533,95713.0,95693.0,0.00522504]
[1768346281200,0.09799179,95704.0,95693.0,0.00522504]
[1768346281496,0.09799179,95700.0,95689.0,0.09408]
[1768346281696,0.09799179,95698.0,95686.0,0.37312]
[1768346281886,0.09799179,95696.0,95686.0,0.27312]
[1768346282085,0.18852533,95695.0,95677.0,0.88412]
[1768346282287,0.1654164,95690.0,95678.0,0.09408]
[1768346282696,0.18852533,95695.0,95678.0,0.09408]
[1768346284195,0.09799179,95699.0,95678.0,0.09408]
[1768346285098,0.19596246,95699.0,95678.0,0.09408]
[1768346285803,0.09797067,95698.0,95678.0,0.09408]
[1768346285994,0.09097272,95697.0,95678.0,0.09408]
[1768346286298,0.09408,95704.0,95666.0,0.09412]
[1768346286299,0.09797067,95694.0,95666.0,0.09412]
[1768346286494,0.18894339,95692.0,95666.0,0.09412]
[1768346286689,0.09097272,95696.0,95674.0,0.09013828]
[1768346286890,0.19209067,95697.0,95674.0,0.18624805]
[1768346287297,0.09797067,95703.0,95677.0,0.09013828]
[1768346287489,0.09797067,95703.0,95682.0,0.09013828]
[1768346287890,0.09097272,95700.0,95673.0,0.00522613]
[1768346288095,0.09797067,95699.0,95674.0,0.49276]
[1768346288295,0.09097272,95698.0,95674.0,0.49276]
[1768346288498,0.09797067,95697.0,95674.0,0.49276]
[1768346288700,0.09797067,95695.0,95674.0,0.49276]
[1768346288900,0.09797067,95693.0,95673.0,0.00522613]
[1768346289104,0.09797067,95691.0,95673.0,0.09934613]
[1768346289311,0.09097272,95690.0,95673.0,0.09934613]
[1768346289496,0.09797067,95689.0,95673.0,0.09934613]
[1768346290610,0.18894339,95695.0,95673.0,0.09934613]
[1768346290808,0.09797067,95694.0,95673.0,0.09934613]
[1768346291109,0.18894339,95694.0,95673.0,0.09934613]
[1768346291500,0.18894339,95694.0,95673.0,0.00522613]
[1768346293805,0.18894339,95693.0,95673.0,0.00522613]
[1768346294614,0.18894339,95692.0,95673.0,0.00522613]
[1768346294798,0.18894339,95691.0,95673.0,0.00522613]
[1768346295006,0.18894339,95688.0,95673.0,0.00522613]
[1768346295200,0.52236,95689.0,95666.0,0.98050977]
[1768346295201,0.18894339,95684.0,95666.0,0.97852]
[1768346295414,0.52236,95689.0,95674.0,0.09610977]
[1768346295712,0.52236,95689.0,95674.0,0.18624805]
[1768346296310,0.09412,95697.0,95676.0,0.09610977]
[1768346296513,0.52236,95689.0,95677.0,0.09013828]
[1768346296715,0.52236,95689.0,95677.0,0.18425828]
[1768346297712,0.52236,95689.0,95677.0,0.09412]
[1768346297911,0.05443388,95667.0,95649.0,0.09412]
[1768346298117,0.41685072,95670.0,95652.0,0.0918936]
[1768346298319,0.41685072,95670.0,95655.0,0.09419354]
[1768346298704,0.41685072,95670.0,95655.0,0.00229994]
[1768346298904,0.41685072,95670.0,95655.0,0.09641994]
[1768346301020,0.41685072,95670.0,95655.0,0.18831354]
[1768346302916,0.41685072,95670.0,95655.0,0.00229994]
[1768346303117,0.41685072,95670.0,95657.0,0.0918936]
[1768346304126,0.41685072,95663.0,95656.0,0.09412]
[1768346304318,0.41685072,95663.0,95655.0,0.00229994]
[1768346304620,0.41685072,95663.0,95656.0,0.09402]
[1768346305623,0.10891706,95678.0,95656.0,0.09402]
[1768346305818,0.09149876,95676.0,95656.0,0.09402]
[1768346306228,0.01864409,95667.0,95655.0,0.00229994]
[1768346306427,0.09149876,95660.0,95651.0,0.09412]
[1768346306620,0.09412,95679.0,95639.0,0.04178522]
[1768346306621,0.09149876,95658.0,95639.0,0.04178522]
[1768346306822,0.09149876,95654.0,95647.0,4e-05]
[1768346307026,0.11014285,95659.0,95639.0,0.04178522]
[1768346307328,0.18561876,95666.0,95643.0,0.0918936]
[1768346307528,0.18561876,95666.0,95643.0,0.0918436]
[1768346307931,0.0001193,95665.0,95643.0,0.0918436]
[1768346308325,0.0001193,95665.0,95644.0,0.09412]
[1768346308720,0.0001193,95665.0,95645.0,0.09921813]
[1768346308925,0.09149876,95672.0,95645.0,0.09921813]
[1768346309223,0.09149876,95680.0,95645.0,0.09921813]
[1768346309419,0.10787608,95675.0,95645.0,0.09921813]
[1768346309620,0.10787608,95673.0,95646.0,0.0918936]
[1768346310020,0.10787608,95671.0,95646.0,0.0918936]
[1768346310229,0.10787608,95669.0,95645.0,0.09921813]
[1768346310433,0.09149876,95669.0,95647.0,0.0918936]
[1768346310732,0.01637732,95674.0,95649.0,0.0918936]
[1768346311723,0.09412,95679.0,95648.0,0.19337813]
[1768346311724,0.11014915,95672.0,95648.0,0.19337813]
[1768346312224,0.09149876,95670.0,95648.0,0.19337813]
[1768346312532,0.09149876,95670.0,95649.0,0.09416]
[1768346313226,0.09149876,95668.0,95649.0,0.09416]
[1768346313442,0.11014915,95675.0,95649.0,0.0918936]
[1768346313735,0.09412,95679.0,95645.0,0.09921813]
[1768346313736,0.09149876,95667.0,95650.0,0.09416]
[1768346313924,0.11225726,95663.0,95639.0,0.23289695]
[1768346314120,0.09149876,95659.0,95639.0,0.04178522]
[1768346314425,0.09149876,95659.0,95530.0,3.13931421]
[1768346314426,0.10025726,95644.0,95626.0,0.09416]
[1768346314620,0.17063871,95660.0,95615.0,0.09416]
[1768346314621,0.10025726,95636.0,95615.0,0.09416]
[1768346314821,0.09795659,95634.0,95605.0,0.19111173]
[1768346315025,0.09795659,95634.0,95613.0,0.09938941]
[1768346315430,0.09591744,95630.0,95613.0,0.00522941]
[1768346315631,0.09845122,95630.0,95613.0,0.00522941]
[1768346315826,0.00253378,95636.0,95613.0,0.00522941]
[1768346316025,0.09591744,95637.0,95613.0,0.00522941]
[1768346316324,0.09669378,95642.0,95615.0,0.28932484]
[1768346316524,0.09845122,95641.0,95615.0,0.28932484]
[1768346316733,0.09845122,95637.0,95615.0,0.09416]
[1768346316935,0.09845122,95637.0,95613.0,0.00522941]
[1768346317328,0.09591744,95646.0,95621.0,0.19516484]
[1768346317641,0.09591744,95662.0,95638.0,0.0995756]
[1768346319238,0.09591744,95662.0,95638.0,0.0995256]
[1768346320235,0.09591744,95669.0,95639.0,0.09558924]
[1768346320434,0.09416,95668.0,95639.0,0.09558924]
[1768346320641,0.09591744,95666.0,95635.0,0.18974924]
[1768346320842,0.09591744,95666.0,95636.0,0.09558924]
[1768346321139,0.09416,95667.0,95636.0,0.09558924]
[1768346321434,0.09591744,95666.0,95637.0,0.19516484]
[1768346321937,0.09591744,95666.0,95638.0,0.0995756]
[1768346322339,0.09591744,95666.0,95638.0,0.19516484]
[1768346322740,0.09591744,95666.0,95653.0,0.00522723]
[1768346323435,0.09762907,95666.0,95653.0,0.00522723]
[1768346323644,0.09762907,95664.0,95638.0,0.19516484]
[1768346323836,0.00171163,95663.0,95638.0,0.19516484]
[1768346324037,0.09591744,95662.0,95638.0,0.19516484]
[1768346324345,0.09416,95667.0,95641.0,0.19516484]
[1768346324532,0.09416,95667.0,95643.0,0.0995756]
[1768346324728,0.09591744,95684.0,95647.0,0.0995756]
[1768346324935,0.0135858,95686.0,95667.0,0.19516484]
[1768346325239,0.0135858,95686.0,95669.0,0.19516484]
[1768346325537,0.00522504,95693.0,95656.0,0.3636956]
[1768346325538,0.00522504,95693.0,95673.0,0.19516484]
[1768346325838,0.00522504,95693.0,95673.0,0.28932484]
[1768346326241,0.00522504,95693.0,95673.0,0.1937356]
[1768346326440,0.00522504,95693.0,95674.0,0.09416]
[1768346326441,0.09866356,95691.0,95674.0,0.09416]
[1768346326640,0.09591744,95691.0,95675.0,0.09416]
[1768346326850,0.00522504,95693.0,95678.0,0.19516484]
[1768346327031,0.00522504,95693.0,95681.0,0.19516484]
[1768346327230,0.00015682,95693.0,95682.0,0.0995756]
[1768346327435,0.00015682,95693.0,95682.0,0.19516484]
[1768346327635,0.00015682,95693.0,95675.0,0.28932484]
[1768346328531,0.00015682,95693.0,95669.0,0.09558924]
[1768346328746,0.00015682,95693.0,95670.0,0.09416]
[1768346328945,0.00015682,95693.0,95670.0,0.28932484]
[1768346329248,0.00015682,95693.0,95671.0,0.28932484]
[1768346329638,0.00229922,95685.0,95671.0,0.28932484]
[1768346330033,0.00229922,95685.0,95665.0,0.09558924]
[1768346330338,0.00229922,95685.0,95666.0,0.09416]
[1768346330850,0.00229922,95685.0,95666.0,0.28932484]
[1768346331047,0.00015682,95693.0,95668.0,0.19516484]
[1768346331346,0.00015682,95693.0,95671.0,0.19516484]
[1768346331647,0.09835898,95693.0,95672.0,0.09416]
[1768346331838,0.09607426,95693.0,95673.0,0.09416]
[1768346332039,0.09607426,95693.0,95674.0,0.09416]
[1768346332340,0.09607426,95693.0,95675.0,0.09416]
[1768346333550,0.09607426,95693.0,95667.0,0.19516484]
[1768346333847,0.09607426,95693.0,95674.0,0.09416]
[1768346334551,0.00015682,95693.0,95674.0,0.09416]
[1768346336954,0.00015682,95693.0,95675.0,0.19516484]
[1768346337152,0.00015682,95693.0,95677.0,0.19516484]
[1768346337348,0.09416,95705.0,95679.0,0.19516484]
[1768346337549,0.09416,95705.0,95683.0,0.19516484]
[1768346337751,0.09416,95705.0,95684.0,0.19516484]
[1768346337940,0.09416,95705.0,95685.0,0.09558924]
[1768346339359,0.09416,95705.0,95686.0,0.0995756]
[1768346339559,0.09416,95705.0,95687.0,0.09558924]
[1768346340157,0.09416,95705.0,95686.0,0.0995756]
[1768346340357,0.09416,95705.0,95685.0,0.09412]
[1768346341960,0.19007744,95705.0,95685.0,0.09412]
[1768346342257,0.09591744,95705.0,95674.0,0.09574606]
[1768346342458,0.09591744,95705.0,95674.0,0.00015682]
[1768346342669,0.09591744,95702.0,95674.0,0.00015682]
[1768346342860,0.09591744,95700.0,95674.0,0.00015682]
[1768346343467,0.09412,95701.0,95676.0,0.0995756]
[1768346343660,0.09412,95701.0,95677.0,0.09558924]
[1768346344165,0.09591744,95700.0,95677.0,0.09558924]
[1768346346670,0.09870249,95707.0,95680.0,0.09954697]
[1768346347468,0.09870249,95707.0,95680.0,0.19366697]
[1768346348265,0.09870249,95707.0,95683.0,0.09685088]
[1768346348565,0.09870249,95707.0,95684.0,0.09954697]
[1768346348766,0.01386998,95709.0,95685.0,0.09685088]
[1768346348967,0.10392644,95713.0,95691.0,0.19639785]
[1768346348968,0.19804644,95713.0,95691.0,0.19639785]
[1768346349169,0.09934395,95713.0,95694.0,0.19639785]
[1768346349370,0.16532214,95710.0,95694.0,0.19639785]
[1768346349673,0.11247899,95713.0,95690.0,0.16532214]
[1768346349866,0.16532214,95710.0,95690.0,0.16532214]
[1768346350061,0.16532214,95710.0,95692.0,0.00015673]
[1768346350378,0.11247899,95713.0,95692.0,0.00015673]
[1768346350570,0.16532214,95710.0,95692.0,0.00015673]
[1768346351675,0.26402463,95710.0,95692.0,0.00015673]
[1768346351880,0.09870249,95701.0,95675.0,0.09954697]
[1768346352068,0.16532214,95690.0,95674.0,0.09685088]
[1768346352468,0.16532214,95690.0,95675.0,0.09412]
[1768346353180,0.16532214,95690.0,95675.0,0.19366697]
[1768346353383,0.16541775,95690.0,95675.0,0.09954697]
[1768346353575,0.16541775,95690.0,95675.0,0.19366697]
[1768346353774,0.26412024,95700.0,95675.0,0.19366697]
[1768346353977,0.09870249,95700.0,95675.0,0.19366697]
[1768346354276,0.09870249,95700.0,95675.0,0.09412]
[1768346358277,0.09870249,95700.0,95655.0,0.09359091]
[1768346358481,0.09777798,95684.0,95656.0,0.09412]
[1768346358778,0.10823298,95684.0,95650.0,0.09359091]
[1768346358980,0.09777798,95678.0,95651.0,0.09412]
[1768346359173,0.09777798,95678.0,95648.0,0.09206944]
[1768346359379,0.09777798,95678.0,95649.0,0.09412]
[1768346360368,0.09777798,95678.0,95652.0,0.18566035]
[1768346360574,0.09777798,95685.0,95661.0,0.18566035]
[1768346360773,0.09777798,95685.0,95662.0,0.09412]
[1768346364571,0.09777798,95685.0,95661.0,0.09206944]
[1768346364775,0.09777798,95685.0,95662.0,0.09412]
[1768346365979,0.09412,95689.0,95665.0,0.18566035]
[1768346366386,0.09777798,95688.0,95665.0,0.09206944]
[1768346367184,0.09412,95689.0,95667.0,0.09359091]
[1768346367386,0.09412,95689.0,95669.0,0.09359091]
[1768346367587,0.09777798,95694.0,95669.0,0.18566035]
[1768346368185,0.09412,95698.0,95662.0,0.09412]
[1768346368186,0.09777798,95689.0,95663.0,0.09359091]
[1768346368583,0.09777798,95689.0,95664.0,0.09412]
[1768346368983,0.09777798,95689.0,95665.0,0.09412]
[1768346369487,0.09777798,95689.0,95662.0,0.09206944]
[1768346369689,0.09777798,95689.0,95663.0,0.09412]
[1768346370387,0.09777798,95679.0,95656.0,0.09206944]
[1768346370582,0.09777798,95679.0,95657.0,0.09412]
[1768346370782,0.09777798,95679.0,95647.0,0.21389091]
[1768346370783,0.09777798,95669.0,95647.0,0.1203]
[1768346370988,0.05443388,95668.0,95648.0,0.09412]
[1768346371292,0.09777798,95669.0,95643.0,0.18566035]
[1768346371491,0.09777798,95669.0,95649.0,0.09412]
[1768346373489,0.09777798,95669.0,95643.0,0.18566035]
[1768346373791,0.09777798,95669.0,95650.0,0.09412]
[1768346375384,0.09777798,95669.0,95643.0,0.18566035]
[1768346375597,0.09777798,95669.0,95644.0,0.09416]
[1768346375993,0.09777798,95669.0,95644.0,0.18625822]
[1768346376997,0.09777798,95669.0,95645.0,0.09209822]
[1768346377186,0.09777798,95669.0,95646.0,0.09416]
[1768346377697,0.09777798,95669.0,95647.0,0.09209822]
[1768346377999,0.16547335,95680.0,95653.0,0.09209822]
[1768346378192,0.09230441,95681.0,95655.0,0.09209822]
[1768346378398,0.16547335,95670.0,95655.0,0.18349311]
[1768346379282,0.165489,95670.0,95655.0,0.09139489]
[1768346379794,0.165489,95670.0,95662.0,0.09209822]
[1768346380097,0.04895203,95683.0,95662.0,0.09209822]
[1768346380285,0.14125644,95683.0,95661.0,0.09139489]
[1768346380485,0.09230441,95682.0,95657.0,0.09209822]
[1768346383701,0.19392956,95680.0,95657.0,0.09209822]
[1768346383901,0.28623397,95680.0,95657.0,0.09209822]
[1768346384310,0.09230441,95679.0,95657.0,0.09209822]
[1768346384803,0.09230441,95679.0,95655.0,0.09139489]
[1768346386205,0.19392956,95680.0,95657.0,0.09139489]
[1768346386500,0.04895203,95683.0,95659.0,0.09139489]
[1768346386701,0.04895203,95683.0,95660.0,0.09209822]
[1768346387102,0.09230441,95682.0,95660.0,0.09209822]
[1768346390393,0.09230441,95682.0,95662.0,0.09209822]
[1768346390709,0.04895203,95683.0,95664.0,0.09209822]
[1768346391007,0.04895203,95683.0,95665.0,0.09139489]
[1768346391300,0.04895203,95683.0,95665.0,0.18349311]
[1768346391898,0.04895203,95683.0,95665.0,0.09139489]
[1768346392406,0.04895203,95683.0,95661.0,0.09209822]
[1768346392606,0.09230441,95679.0,95658.0,0.09139489]
[1768346392806,0.09230441,95679.0,95659.0,0.09416]
[1768346393599,0.09230441,95679.0,95660.0,0.09416]
[1768346397203,0.09230441,95679.0,95656.0,0.18349311]
[1768346397506,0.09230441,95679.0,95657.0,0.09416]
[1768346397911,0.09230441,95679.0,95656.0,0.09139489]
[1768346398112,0.09230441,95679.0,95652.0,0.09209822]
[1768346398408,0.09230441,95679.0,95655.0,0.09416]
[1768346398907,0.09230441,95679.0,95655.0,0.18625822]
[1768346399108,0.09230441,95679.0,95656.0,0.09209822]
[1768346399306,0.09230441,95679.0,95657.0,0.09209822]
[1768346399604,0.09230441,95679.0,95657.0,0.18349311]
[1768346399815,0.16548445,95670.0,95658.0,0.09209822]
[1768346400198,0.05443388,95669.0,95658.0,0.09209822]
[1768346400397,0.09230441,95669.0,95646.0,0.09139489]
[1768346400598,0.16548445,95656.0,95647.0,0.09416]
[1768346400902,0.16548445,95660.0,95643.0,0.09139489]
[1768346401103,0.16548445,95660.0,95644.0,0.09416]
[1768346401701,0.09412,95685.0,95655.0,0.09139489]
[1768346401903,0.16548445,95680.0,95663.0,0.09209822]
[1768346402114,0.010453,95699.0,95656.0,0.09416]
[1768346402115,0.09230441,95701.0,95670.0,0.09209822]
[1768346402301,0.16548445,95680.0,95673.0,0.09209822]
[1768346402502,0.16548445,95683.0,95673.0,0.09209822]
[1768346403504,0.16548445,95690.0,95673.0,0.09209822]
[1768346403700,0.18646441,95696.0,95673.0,0.09139489]
[1768346403900,0.16548445,95690.0,95674.0,0.09209822]
[1768346404320,0.16548445,95684.0,95673.0,0.09662102]
[1768346406706,0.09230441,95695.0,95673.0,0.19071364]
[1768346406904,0.16548445,95683.0,95673.0,0.19071364]
[1768346407416,0.16548445,95690.0,95673.0,0.19071364]
[1768346408215,0.16548445,95690.0,95673.0,0.09662102]
[1768346409116,0.09230441,95695.0,95673.0,0.09662102]
[1768346409314,0.16543747,95690.0,95673.0,0.09662102]
[1768346410417,0.09230441,95695.0,95673.0,0.09662102]
[1768346410613,0.09416,95696.0,95675.0,0.09578936]
[1768346410811,0.09416,95696.0,95676.0,0.09409262]
[1768346411020,0.09416,95696.0,95677.0,0.09409262]
[1768346411219,0.09416,95696.0,95673.0,0.00522613]
[1768346411220,0.1931756,95696.0,95673.0,0.00522613]
[1768346411415,0.0990156,95695.0,95673.0,0.00522613]
[1768346411714,0.0990156,95687.0,95664.0,0.09578936]
[1768346411915,0.1094706,95685.0,95665.0,0.09416]
[1768346412218,0.0990156,95679.0,95658.0,0.09416]
[1768346412440,0.0990156,95679.0,95650.0,0.09409262]
[1768346412718,0.0990156,95679.0,95651.0,0.09416]
[1768346413020,0.0990156,95679.0,95653.0,0.09409262]
[1768346413705,0.0990156,95679.0,95653.0,0.18988198]
[1768346413906,0.0990156,95679.0,95656.0,0.09409262]
[1768346414115,0.0990156,95679.0,95657.0,0.09578936]
[1768346414613,0.1931756,95685.0,95660.0,0.09409262]
[1768346414817,0.09416,95685.0,95663.0,0.09578936]
[1768346415213,0.09416,95685.0,95664.0,0.09409262]
[1768346416203,0.0990156,95684.0,95662.0,0.09416]
[1768346417323,0.0990156,95684.0,95659.0,0.09578936]
[1768346417517,0.0990156,95684.0,95660.0,0.18825262]
[1768346418623,0.0990156,95684.0,95655.0,0.09625836]
[1768346419123,0.0990156,95684.0,95656.0,0.09416]
[1768346419820,0.09845005,95677.0,95650.0,0.09625836]
[1768346420119,0.09845005,95677.0,95653.0,0.00522723]
[1768346423023,0.09845005,95677.0,95653.0,0.10148559]
[1768346423220,0.09845005,95677.0,95654.0,0.09625836]
[1768346423424,0.09845005,95677.0,95655.0,0.09625836]
[1768346423727,0.09845005,95684.0,95657.0,0.09863521]
[1768346423925,0.09845005,95684.0,95658.0,0.09625836]
[1768346424426,0.09845005,95682.0,95657.0,0.09863521]
[1768346424726,0.09845005,95682.0,95658.0,0.09625836]
[1768346424944,0.09845005,95682.0,95653.0,0.09938723]
[1768346424945,0.09845005,95682.0,95660.0,0.09625836]
[1768346425120,0.09845005,95682.0,95661.0,0.09625836]
[1768346425624,0.09845005,95682.0,95660.0,0.09863521]
[1768346425828,0.09845005,95682.0,95660.0,0.19489357]
[1768346426024,0.09416,95685.0,95665.0,0.09625836]
[1768346426220,0.14912003,95689.0,95667.0,0.09625836]
[1768346426426,0.09416,95688.0,95667.0,0.09625836]
[1768346426726,0.09416,95688.0,95670.0,0.09863521]
[1768346426926,0.09416,95688.0,95671.0,0.09625836]
[1768346427926,0.09416,95688.0,95672.0,0.09625836]
[1768346428121,0.05066998,95689.0,95672.0,0.09625836]
[1768346432510,0.05066998,95689.0,95671.0,0.09863521]
[1768346433524,0.05066998,95689.0,95672.0,0.19489357]
[1768346433731,0.05066998,95689.0,95673.0,0.09625836]
[1768346445839,0.05066998,95689.0,95672.0,0.09863521]
[1768346446130,0.05066998,95689.0,95672.0,0.19267331]
[1768346446323,0.05066998,95689.0,95673.0,0.0940381]
[1768346447624,0.05066998,95689.0,95674.0,0.0940381]
[1768346447824,0.00522504,95693.0,95674.0,0.18900955]
[1768346448032,0.00522504,95693.0,95675.0,0.0940381]
[1768346452041,0.00522504,95693.0,95674.0,0.09497145]
[1768346452235,0.10675296,95689.0,95669.0,0.0940381]
[1768346452541,0.10675296,95688.0,95668.0,0.09497145]
[1768346452842,0.09629896,95688.0,95662.0,0.09497145]
[1768346453034,0.08349102,95678.0,95633.0,0.17892832]
[1768346453237,0.09629896,95673.0,95634.0,0.7275]
[1768346453437,0.08349102,95672.0,95634.0,0.6072]
[1768346453742,0.09629896,95670.0,95634.0,0.6072]
[1768346455130,0.09629896,95676.0,95638.0,0.18900955]
[1768346455330,0.18378321,95676.0,95645.0,0.18900955]
[1768346455543,0.18378321,95676.0,95649.0,0.18900955]
[1768346455835,0.18378321,95676.0,95646.0,0.09416]
[1768346455836,0.18378321,95676.0,95652.0,0.0940381]
[1768346456342,0.18361656,95675.0,95652.0,0.0940381]
[1768346456544,0.18361656,95674.0,95652.0,0.0940381]
[1768346458333,0.09629896,95669.0,95650.0,0.09416]
[1768346458641,0.09629896,95669.0,95650.0,0.1881981]
[1768346459231,0.09629896,95669.0,95651.0,0.0940381]
[1768346459440,0.18341261,95674.0,95652.0,0.0940381]
[1768346459829,0.09629896,95673.0,95652.0,0.0940381]
[1768346460135,0.09629896,95670.0,95650.0,0.1881981]
[1768346460339,0.09629896,95670.0,95651.0,0.0940381]
[1768346460532,0.18395149,95678.0,95652.0,0.09497145]
[1768346460732,0.18395149,95674.0,95653.0,0.0940381]
[1768346460928,0.08765253,95669.0,95649.0,0.0940381]
[1768346461126,0.18395149,95668.0,95649.0,0.09416]
[1768346461326,0.18395149,95668.0,95649.0,0.1881981]
[1768346461530,0.09629896,95668.0,95650.0,0.0940381]
[1768346462341,0.08765253,95672.0,95650.0,0.0940381]
[1768346462544,0.18395149,95672.0,95650.0,0.0940381]
[1768346462741,0.18395149,95672.0,95650.0,0.18900955]
[1768346462943,0.18395149,95672.0,95651.0,0.0940381]
[1768346463333,0.09629896,95672.0,95651.0,0.0940381]
[1768346463534,0.18091706,95668.0,95646.0,0.0940381]
[1768346463739,0.09629896,95668.0,95648.0,0.0940381]
[1768346465638,0.00522613,95673.0,95649.0,0.09217531]